[Event "DVM U14w 2019"]
[Site "Neumuenster"]
[Date "2019.12.29"]
[Round "5"]
[White "Lenger, Julia"]
[Black "Gietzelt, Magdalena"]
[Result "1-0"]
[ECO "A04"]
[WhiteElo "856"]
[BlackElo "841"]
[Annotator "NA"]
[PlyCount "125"]
[EventDate "2019.12.27"]
[EventType "team-tourn"]
[EventRounds "7"]
[EventCountry "GER"]
[SourceTitle "playchess.com"]
[Source "ChessBase"]
[SourceQuality "1"]
[WhiteTeam "SC Papenburg"]
[BlackTeam "Karlsruher SF"]
[TimeControl "40/5400+30:1800+30"]

1. Nf3 {[%emt 0:00:00]} Nc6 {[%emt 0:00:00]} 2. d4 {[%emt 0:03:42]} d5 {[%emt 0:01:48]} 3. g3 {[%emt 0:00:32]} Nf6 {[%emt 0:01:17]} 4. Bg2 {[%emt 0:01:02]} Bf5 {[%emt 0:01:04]} 5. O-O {[%emt 0:01:27]} Be4 {[%emt 0:01:06]} 6. Nbd2 {[%emt 0:04:04]} e6 {[%emt 0:01:28]} 7. c4 Qd7 {[%emt 0:03:49]} 8. cxd5 {[%emt 0:13:37]} Bxd5 {[%emt 0:01:46]} 9. e3 {[%emt 0:07:57]} Qd6 {[%emt 0:04:41]} 10. Re1 {[%emt 0:07:29]} Ne4 {[%emt 0:00:46]} 11. Nxe4 {[%emt 0:02:22]} Bxe4 {[%emt 0:01:15]} 12. Qb3 {[%emt 0:04:29]} Nb4 {[%emt 0:02:41]} 13. Re2 {[%emt 0:02:36]} Bd3 {[%emt 0:01:36]} 14. Rd2 {[%emt 0:01:33]} Nc2 {[%emt 0:00:53]} 15. Rxc2 {[%emt 0:00:56]} Bxc2 {[%emt 0:00:09]} 16. Qxc2 {[%emt 0:00:18]} Rd8 {[%emt 0:01:20]} 17. Qa4+ {[%emt 0:01:21]} c6 {[%emt 0:01:16]} 18. Qxa7 {[%emt 0:03:53]} c5 {[%emt 0:01:18]} 19. Qxb7 {[%emt 0:01:42]} cxd4 {[%emt 0:00:39]} 20. Qb5+ {[%emt 0:01:11]} Rd7 {[%emt 0:00:33]} 21. Ne5 {[%emt 0:02:56]} dxe3 {[%emt 0:01:48]} 22. Bxe3 {[%emt 0:00:40]} Ke7 {[%emt 0:03:32]} 23. Nxd7 Qxd7 {[%emt 0:00:12]} 24. Bc5+ {[%emt 0:02:42]} Ke8 {[%emt 0:01:17]} 25. Qxd7+ {[%emt 0:00:16]} Kxd7 {[%emt 0:00:08]} 26. Bxf8 {[%emt 0:00:11]} Rxf8 {[%emt 0:00:08]} 27. Kf1 {[%emt 0:00:18]} Rc8 {[%emt 0:00:20]} 28. b4 {[%emt 0:01:02]} Rc4 {[%emt 0:01:09]} 29. a3 {[%emt 0:00:26]} Kc7 {[%emt 0:00:12]} 30. Ke2 {[%emt 0:00:38]} Rc2+ {[%emt 0:00:15]} 31. Ke3 {[%emt 0:00:35]} f5 {[%emt 0:00:54]} 32. Bf1 {[%emt 0:04:17]} g5 {[%emt 0:00:36]} 33. Kd3 {[%emt 0:04:11]} Rxf2 {[%emt 0:00:17]} 34. h3 {[%emt 0:03:15]} Rf3+ {[%emt 0:00:12]} 35. Kd2 {[%emt 0:01:18]} Rxg3 {[%emt 0:00:08]} 36. Rc1+ {[%emt 0:00:41]} Kd7 {[%emt 0:00:15]} 37. Rc3 {[%emt 0:00:59]} f4 {[%emt 0:00:54]} 38. Rxg3 {[%emt 0:01:02]} fxg3 {[%emt 0:00:21]} 39. Bg2 {[%emt 0:00:22]} Kd6 {[%emt 0:00:56]} 40. a4 {[%emt 0:01:17]} e5 {[%emt 0:00:29]} 41. Kd3 {[%emt 0:30:35]} h6 {[%emt 0:31:56]} 42. a5 {[%emt 0:00:48]} e4+ {[%emt 0:01:07]} 43. Bxe4 {[%emt 0:00:57]} Kc7 {[%emt 0:01:10]} 44. b5 {[%emt 0:00:29]} h5 {[%emt 0:00:50]} 45. Kc4 {[%emt 0:03:07]} g4 {[%emt 0:00:13]} 46. h4 {[%emt 0:00:20]} g2 {[%emt 0:00:57]} 47. Bxg2 {[%emt 0:00:10]} Kb8 {[%emt 0:00:08]} 48. Kc5 {[%emt 0:00:56]} Ka7 {[%emt 0:00:08]} 49. Kc6 {[%emt 0:00:48]} Kb8 {[%emt 0:00:09]} 50. Kb6 {[%emt 0:00:13]} g3 {[%emt 0:00:18]} 51. a6 {[%emt 0:00:09]} Kc8 {[%emt 0:00:36]} 52. a7 {[%emt 0:00:11]} Kd7 {[%emt 0:00:12]} 53. a8=Q {[%emt 0:00:13]} Ke6 {[%emt 0:00:10]} 54. Qf8 {[%emt 0:00:38]} Ke5 {[%emt 0:00:13]} 55. Qb4 {[%emt 0:00:49]} Kf5 {[%emt 0:00:13]} 56. Qe4+ {[%emt 0:00:24]} Kf6 {[%emt 0:00:13]} 57. Ka7 {[%emt 0:00:24]} Kg7 {[%emt 0:00:10]} 58. b6 {[%emt 0:00:15]} Kf6 {[%emt 0:00:05]} 59. b7 {[%emt 0:00:09]} Kg7 {[%emt 0:00:10]} 60. b8=Q {[%emt 0:00:09]} Kf6 {[%emt 0:00:10]} 61. Qd6+ {[%emt 0:00:28]} Kf7 {[%emt 0:00:31]} 62. Qee7+ {[%emt 0:00:16]} Kg8 {[%emt 0:00:17]} 63. Qdd8# {normal} 1-0

[Event "DVM U14w 2019"]
[Site "Neumuenster"]
[Date "2019.12.29"]
[Round "6"]
[White "Dietz, Kristin"]
[Black "Roncea, Andrea-Alexandra"]
[Result "1/2-1/2"]
[ECO "C89"]
[WhiteElo "1946"]
[BlackElo "1591"]
[Annotator "NA"]
[PlyCount "95"]
[EventDate "2019.12.27"]
[EventType "team-tourn"]
[EventRounds "7"]
[EventCountry "GER"]
[SourceTitle "playchess.com"]
[Source "ChessBase"]
[SourceQuality "1"]
[WhiteTeam "USV Halle"]
[BlackTeam "SC Papenburg"]
[WhiteTeamCountry "GER"]
[BlackTeamCountry "GER"]
[TimeControl "40/5400+30:1800+30"]

1. e4 {[%emt 0:00:00]} e5 {[%emt 0:00:00]} 2. Nf3 {[%emt 0:00:00]} Nc6 {[%emt 0:00:00]} 3. Bb5 {[%emt 0:00:23]} a6 {[%emt 0:00:00]} 4. Ba4 {[%emt 0:00:18]} Nf6 {[%emt 0:00:39]} 5. O-O {[%emt 0:00:39]} Be7 {[%emt 0:00:21]} 6. Re1 {[%emt 0:00:08]} b5 {[%emt 0:00:09]} 7. Bb3 {[%emt 0:00:06]} O-O {[%emt 0:00:18]} 8. c3 {[%emt 0:00:20]} d5 {[%emt 0:00:41]} 9. exd5 {[%emt 0:00:34]} Nxd5 {[%emt 0:00:13]} 10. Nxe5 {[%emt 0:00:22]} Nxe5 {[%emt 0:00:16]} 11. Rxe5 {[%emt 0:00:04]} c6 {[%emt 0:00:19]} 12. d4 {[%emt 0:00:16]} Bd6 {[%emt 0:00:11]} 13. Re1 {[%emt 0:00:18]} Qh4 {[%emt 0:00:19]} 14. g3 {[%emt 0:00:08]} Qh3 {[%emt 0:00:28]} 15. Re4 {[%emt 0:00:24]} g5 {[%emt 0:01:02]} 16. Qf1 {[%emt 0:00:33]} Qh5 {[%emt 0:08:42]} 17. Nd2 {[%emt 0:04:08]} f5 {[%emt 0:11:29]} 18. Re1 {[%emt 0:03:21]} f4 {[%emt 0:11:23]} 19. Bd1 {[%emt 0:19:16]} Qh6 {[%emt 0:10:17]} 20. Ne4 {[%emt 0:01:11]} fxg3 {[%emt 0:02:17]} 21. hxg3 {[%emt 0:00:08]} Be7 {[%emt 0:12:08]} 22. Qg2 {[%emt 0:04:52]} Qg7 {[%emt 0:14:53]} 23. Qh2 {[%emt 0:16:57]} Bf5 {[%emt 0:07:09]} 24. Bf3 {[%emt 0:03:00]} Rae8 {[%emt 0:06:27]} 25. Bd2 {[%emt 0:01:00]} Bxe4 {[%emt 0:03:14]} 26. Bxe4 {[%emt 0:00:58]} h6 {[%emt 0:02:31]} 27. Qh5 {[%emt 0:02:49]} Nf6 {[%emt 0:02:07]} 28. Qg6 {[%emt 0:00:18]} Nxe4 {[%emt 0:00:16]} 29. Qxg7+ Kxg7 {[%emt 0:00:08]} 30. Rxe4 {[%emt 0:00:09]} Bd6 {[%emt 0:01:15]} 31. Rae1 {[%emt 0:00:15]} Kf7 {[%emt 0:00:18]} 32. Kg2 {[%emt 0:01:03]} Rxe4 {[%emt 0:01:18]} 33. Rxe4 {[%emt 0:00:06]} Re8 {[%emt 0:00:22]} 34. f3 {[%emt 0:00:27]} Re7 {[%emt 0:01:26]} 35. Kh3 {[%emt 0:01:42]} Kg6 {[%emt 0:00:49]} 36. b3 {[%emt 0:01:37]} h5 {[%emt 0:01:05]} 37. Kg2 {[%emt 0:01:41]} g4 {[%emt 0:01:17]} 38. Rxe7 {[%emt 0:00:05]} Bxe7 {[%emt 0:00:07]} 39. Kf2 {[%emt 0:04:01]} Kf5 {[%emt 0:00:57]} 40. Ke3 {[%emt 0:00:31]} Bd6 {[%emt 0:00:56]} 41. f4 {[%emt 0:30:38]} h4 {[%emt 0:05:48]} 42. gxh4 {[%emt 0:00:00]} Bxf4+ {[%emt 0:00:08]} 43. Ke2 {[%emt 0:00:00]} Bxd2 {[%emt 0:04:53]} 44. Kxd2 {[%emt 0:00:00]} g3 {[%emt 0:00:05]} 45. Ke2 {[%emt 0:00:00]} Kg4 {[%emt 0:00:18]} 46. h5 {[%emt 0:00:00]} Kxh5 {[%emt 0:00:17]} 47. Kf3 {[%emt 0:00:00]} Kh4 {[%emt 0:00:23]} 48. Ke4 {normal} 1/2-1/2

[Event "DVM U14w 2019"]
[Site "Neumuenster"]
[Date "2019.12.29"]
[Round "6"]
[White "Reuter, Elisa"]
[Black "Becker, Linda"]
[Result "1/2-1/2"]
[ECO "C13"]
[WhiteElo "1850"]
[BlackElo "1617"]
[Annotator "NA"]
[PlyCount "42"]
[EventDate "2019.12.27"]
[EventType "team-tourn"]
[EventRounds "7"]
[EventCountry "GER"]
[SourceTitle "playchess.com"]
[Source "ChessBase"]
[SourceQuality "1"]
[WhiteTeam "SG Leipzig"]
[BlackTeam "SG Porz"]
[WhiteTeamCountry "GER"]
[BlackTeamCountry "GER"]
[TimeControl "40/5400+30:1800+30"]

1. e4 {[%emt 0:00:00]} e6 {[%emt 0:00:00]} 2. d4 {[%emt 0:00:00]} d5 {[%emt 0:00:00]} 3. Nc3 {[%emt 0:00:00]} Nf6 {[%emt 0:00:00]} 4. Bg5 {[%emt 0:00:00]} Be7 {[%emt 0:00:00]} 5. e5 {[%emt 0:00:00]} Nfd7 {[%emt 0:00:03]} 6. h4 {[%emt 0:00:00]} h6 {[%emt 0:00:07]} 7. Bxe7 {[%emt 0:00:00]} Qxe7 {[%emt 0:00:07]} 8. Qg4 {[%emt 0:00:45]} O-O {[%emt 0:00:07]} 9. Bd3 {[%emt 0:02:39]} c5 {[%emt 0:00:35]} 10. Nf3 {[%emt 0:02:20]} Nc6 {[%emt 0:01:34]} 11. dxc5 {[%emt 0:15:13]} Ncxe5 {[%emt 0:03:09]} 12. Nxe5 {[%emt 0:01:47]} Nxe5 {[%emt 0:00:08]} 13. Qf4 {[%emt 0:02:22]} Nxd3+ {[%emt 0:01:20]} 14. cxd3 {[%emt 0:00:08]} Qxc5 {[%emt 0:00:43]} 15. d4 {[%emt 0:00:40]} Qb4 {[%emt 0:01:35]} 16. Qd2 {[%emt 0:00:16]} Bd7 {[%emt 0:00:59]} 17. O-O {[%emt 0:00:36]} Rac8 {[%emt 0:00:31]} 18. a3 {[%emt 0:01:03]} Qe7 {[%emt 0:00:23]} 19. Qf4 {[%emt 0:02:03]} a6 {[%emt 0:03:37]} 20. Rfe1 {[%emt 0:01:45]} Rc4 {[%emt 0:04:05]} 21. Nxd5 {[%emt 0:04:16]} Qd8 {[%emt 0:01:36] normal} 1/2-1/2

[Event "DVM U14w 2019"]
[Site "Neumuenster"]
[Date "2019.12.29"]
[Round "6"]
[White "Stowicek, Yara Mathilda"]
[Black "Evering, Enna"]
[Result "1/2-1/2"]
[ECO "C55"]
[WhiteElo "1682"]
[BlackElo "1556"]
[Annotator "NA"]
[PlyCount "65"]
[EventDate "2019.12.27"]
[EventType "team-tourn"]
[EventRounds "7"]
[EventCountry "GER"]
[SourceTitle "playchess.com"]
[Source "ChessBase"]
[SourceQuality "1"]
[WhiteTeam "USV Halle"]
[BlackTeam "SC Papenburg"]
[WhiteTeamCountry "GER"]
[BlackTeamCountry "GER"]
[TimeControl "40/5400+30:1800+30"]

1. e4 {[%emt 0:00:00]} e5 {[%emt 0:00:00]} 2. Bc4 {[%emt 0:00:00]} Nf6 {[%emt 0:00:00]} 3. Nf3 {[%emt 0:00:07]} Nc6 {[%emt 0:00:17]} 4. d3 {[%emt 0:00:21]} Be7 {[%emt 0:00:45]} 5. c3 {[%emt 0:00:57]} O-O {[%emt 0:00:49]} 6. Nbd2 {[%emt 0:00:26]} d5 {[%emt 0:03:56]} 7. exd5 {[%emt 0:05:27]} Nxd5 {[%emt 0:03:29]} 8. O-O {[%emt 0:03:42]} Nb6 {[%emt 0:14:38]} 9. Qe2 {[%emt 0:01:59]} Nxc4 {[%emt 0:06:49]} 10. Nxc4 {[%emt 0:00:15]} f6 {[%emt 0:02:53]} 11. Rd1 {[%emt 0:03:43]} Bg4 {[%emt 0:08:04]} 12. Ne3 {[%emt 0:06:46]} Bh5 {[%emt 0:06:12]} 13. Nf5 {[%emt 0:01:52]} Bg6 {[%emt 0:06:48]} 14. N3h4 {[%emt 0:01:02]} Bxf5 {[%emt 0:01:30]} 15. Nxf5 {[%emt 0:00:24]} Kh8 {[%emt 0:07:08]} 16. Qf3 {[%emt 0:03:41]} Qd7 {[%emt 0:05:59]} 17. Be3 {[%emt 0:04:02]} Bd6 {[%emt 0:04:02]} 18. d4 {[%emt 0:03:01]} Rae8 {[%emt 0:03:18]} 19. Nxd6 {[%emt 0:06:58]} cxd6 {[%emt 0:04:59]} 20. Qd5 {[%emt 0:05:34]} Qc7 {[%emt 0:06:10]} 21. dxe5 {[%emt 0:04:32]} dxe5 {[%emt 0:01:00]} 22. Qd7 {[%emt 0:01:11]} Qxd7 {[%emt 0:01:39]} 23. Rxd7 {[%emt 0:00:16]} b6 {[%emt 0:00:38]} 24. Rad1 {[%emt 0:01:27]} Rd8 {[%emt 0:00:48]} 25. Kf1 {[%emt 0:02:07]} Kg8 {[%emt 0:01:41]} 26. Ke2 {[%emt 0:02:30]} Rxd7 {[%emt 0:00:16]} 27. Rxd7 {[%emt 0:00:21]} Rf7 {[%emt 0:00:29]} 28. Rd6 {[%emt 0:01:55]} Rc7 {[%emt 0:01:46]} 29. f3 {[%emt 0:07:54]} Kf7 {[%emt 0:01:30]} 30. Rd3 {[%emt 0:08:44]} Ke7 {[%emt 0:00:50]} 31. b3 {[%emt 0:01:32]} Rd7 {[%emt 0:00:36]} 32. Rxd7+ {[%emt 0:00:37]} Kxd7 {[%emt 0:00:04]} 33. Kd3 {[%emt 0:00:26] normal} 1/2-1/2

[Event "DVM U14w 2019"]
[Site "Neumuenster"]
[Date "2019.12.29"]
[Round "6"]
[White "Buchholz, Maja"]
[Black "Gossing, Marie-Sophie"]
[Result "1-0"]
[ECO "A20"]
[WhiteElo "1666"]
[BlackElo "1263"]
[Annotator "NA"]
[PlyCount "101"]
[EventDate "2019.12.27"]
[EventType "team-tourn"]
[EventRounds "7"]
[EventCountry "GER"]
[SourceTitle "playchess.com"]
[Source "ChessBase"]
[SourceQuality "1"]
[WhiteTeam "VSG 1880 Offenbach"]
[BlackTeam "Lübecker SV"]
[WhiteTeamCountry "GER"]
[BlackTeamCountry "GER"]
[TimeControl "40/5400+30:1800+30"]

1. c4 {[%emt 0:00:00]} e5 {[%emt 0:00:06]} 2. g3 {[%emt 0:00:00]} Nf6 {[%emt 0:01:05]} 3. Bg2 {[%emt 0:00:00]} g6 {[%emt 0:02:10]} 4. Nc3 {[%emt 0:00:00]} Bg7 {[%emt 0:00:24]} 5. d3 {[%emt 0:00:00]} O-O {[%emt 0:01:22]} 6. Nf3 {[%emt 0:00:03]} d6 {[%emt 0:03:09]} 7. O-O {[%emt 0:00:25]} c6 {[%emt 0:01:02]} 8. Rb1 {[%emt 0:00:38]} Be6 {[%emt 0:00:52]} 9. b4 {[%emt 0:00:10]} Nbd7 {[%emt 0:01:26]} 10. a4 {[%emt 0:06:37]} a6 {[%emt 0:02:34]} 11. Ne1 {[%emt 0:05:52]} d5 {[%emt 0:04:51]} 12. cxd5 {[%emt 0:02:45]} cxd5 {[%emt 0:00:21]} 13. f4 {[%emt 0:02:57]} Rc8 {[%emt 0:03:23]} 14. fxe5 {[%emt 0:03:27]} Nxe5 {[%emt 0:02:21]} 15. Bd2 {[%emt 0:02:28]} Nfg4 {[%emt 0:01:57]} 16. a5 {[%emt 0:10:18]} Qd6 {[%emt 0:04:37]} 17. Na4 {[%emt 0:03:40]} Rb8 {[%emt 0:02:06]} 18. h3 {[%emt 0:02:40]} Nf6 {[%emt 0:01:41]} 19. Bf4 {[%emt 0:01:32]} d4 {[%emt 0:01:42]} 20. Nc5 {[%emt 0:02:18]} b6 {[%emt 0:02:45]} 21. Nxa6 {[%emt 0:02:26]} Rbd8 {[%emt 0:00:48]} 22. axb6 {[%emt 0:00:49]} Bd5 {[%emt 0:03:07]} 23. Bxd5 {[%emt 0:03:07]} Nxd5 {[%emt 0:00:44]} 24. Qb3 {[%emt 0:06:28]} Nc3 {[%emt 0:05:54]} 25. Rb2 {[%emt 0:00:53]} Qd7 {[%emt 0:02:54]} 26. Kh2 {[%emt 0:01:51]} Qe7 {[%emt 0:09:33]} 27. Nc5 {[%emt 0:03:15]} Nd7 {[%emt 0:01:39]} 28. Bc7 Rde8 {[%emt 0:01:56]} 29. Nxd7 {[%emt 0:11:11]} Qxd7 {[%emt 0:00:10]} 30. Rf2 {[%emt 0:00:08]} Be5 {[%emt 0:01:29]} 31. Bxe5 {[%emt 0:01:58]} Rxe5 {[%emt 0:00:13]} 32. Nf3 {[%emt 0:00:57]} Rh5 {[%emt 0:00:35]} 33. h4 {[%emt 0:00:51]} Qe7 {[%emt 0:02:05]} 34. Nxd4 {[%emt 0:01:55]} Qe3 {[%emt 0:00:26]} 35. Rf4 {[%emt 0:00:27]} Nd5 {[%emt 0:04:34]} 36. Nf5 {[%emt 0:05:25]} Qe5 {[%emt 0:02:29]} 37. d4 {[%emt 0:01:29]} Qe6 {[%emt 0:01:32]} 38. Qxd5 {[%emt 0:04:42]} Qxd5 {[%emt 0:03:36]} 39. Ne7+ {[%emt 0:00:08]} Kg7 {[%emt 0:00:06]} 40. Nxd5 {[%emt 0:00:05]} Rxd5 {[%emt 0:00:04]} 41. e3 {[%emt 0:34:15]} Rb5 {[%emt 0:30:18]} 42. Re4 {[%emt 0:01:11]} Rxb6 {[%emt 0:00:10]} 43. b5 {[%emt 0:00:16]} f5 {[%emt 0:01:16]} 44. Re7+ {[%emt 0:00:46]} Kh6 {[%emt 0:00:10]} 45. e4 {[%emt 0:01:28]} fxe4 {[%emt 0:00:17]} 46. Rxe4 {[%emt 0:00:09]} Rfb8 {[%emt 0:00:23]} 47. Re5 {[%emt 0:00:48]} Rf6 {[%emt 0:00:26]} 48. Rb3 {[%emt 0:01:30]} Rf2+ {[%emt 0:00:06]} 49. Kh3 {[%emt 0:00:45]} Rd2 {[%emt 0:00:06]} 50. d5 {[%emt 0:02:26]} Rd8 {[%emt 0:00:07]} 51. b6 {[%emt 0:00:43] normal} 1-0

[Event "DVM U14w 2019"]
[Site "Neumuenster"]
[Date "2019.12.29"]
[Round "6"]
[White "Zoellner, Bente"]
[Black "Zhou, Lepu Coco"]
[Result "1-0"]
[ECO "A48"]
[WhiteElo "1630"]
[BlackElo "1892"]
[Annotator "NA"]
[PlyCount "85"]
[EventDate "2019.12.27"]
[EventType "team-tourn"]
[EventRounds "7"]
[EventCountry "GER"]
[SourceTitle "playchess.com"]
[Source "ChessBase"]
[SourceQuality "1"]
[WhiteTeam "SC Papenburg"]
[BlackTeam "USV Halle"]
[WhiteTeamCountry "GER"]
[BlackTeamCountry "GER"]
[TimeControl "40/5400+30:1800+30"]

1. d4 {[%emt 0:00:00]} Nf6 {[%emt 0:00:00]} 2. Nf3 {[%emt 0:00:00]} g6 {[%emt 0:00:00]} 3. c4 {[%emt 0:00:00]} Bg7 {[%emt 0:00:00]} 4. Nc3 {[%emt 0:00:00]} O-O {[%emt 0:00:00]} 5. e4 {[%emt 0:00:06]} d6 {[%emt 0:00:00]} 6. h3 {[%emt 0:00:24]} e5 {[%emt 0:00:15]} 7. d5 {[%emt 0:00:13]} Nbd7 {[%emt 0:00:26]} 8. Be3 {[%emt 0:00:20]} h6 {[%emt 0:00:22]} 9. Be2 {[%emt 0:00:50]} Ne8 {[%emt 0:00:18]} 10. g4 {[%emt 0:01:06]} c6 {[%emt 0:03:34]} 11. g5 {[%emt 0:05:14]} h5 {[%emt 0:00:34]} 12. h4 {[%emt 0:01:27]} Nb6 {[%emt 0:01:55]} 13. c5 {[%emt 0:17:11]} cxd5 {[%emt 0:03:51]} 14. cxb6 {[%emt 0:04:51]} d4 {[%emt 0:00:08]} 15. Nxd4 {[%emt 0:02:01]} exd4 {[%emt 0:00:07]} 16. Bxd4 {[%emt 0:00:22]} axb6 {[%emt 0:02:32]} 17. Bxg7 {[%emt 0:02:52]} Kxg7 {[%emt 0:01:07]} 18. Qd4+ {[%emt 0:01:28]} Kh7 {[%emt 0:00:20]} 19. Nd5 {[%emt 0:01:58]} Be6 {[%emt 0:01:42]} 20. a3 {[%emt 0:04:30]} b5 {[%emt 0:00:44]} 21. Bxb5 {[%emt 0:03:48]} Bxd5 {[%emt 0:02:03]} 22. Qxd5 {[%emt 0:04:55]} Qa5+ {[%emt 0:00:09]} 23. b4 {[%emt 0:01:15]} Qxb4+ {[%emt 0:01:02]} 24. axb4 {[%emt 0:01:12]} Rxa1+ {[%emt 0:00:06]} 25. Ke2 {[%emt 0:00:07]} Rxh1 {[%emt 0:00:18]} 26. Bxe8 {[%emt 0:00:30]} Kg8 {[%emt 0:01:27]} 27. Bd7 {[%emt 0:05:43]} Rxh4 {[%emt 0:00:11]} 28. Qxb7 {[%emt 0:03:39]} f6 {[%emt 0:01:16]} 29. Qd5+ {[%emt 0:04:13]} Kg7 {[%emt 0:00:50]} 30. gxf6+ {[%emt 0:02:22]} Rxf6 {[%emt 0:00:22]} 31. b5 {[%emt 0:01:34]} Rhf4 {[%emt 0:00:16]} 32. Qd4 {[%emt 0:01:12]} d5 {[%emt 0:00:17]} 33. f3 {[%emt 0:02:42]} dxe4 {[%emt 0:01:39]} 34. fxe4 {[%emt 0:01:32]} Kh6 {[%emt 0:00:59]} 35. b6 {[%emt 0:01:52]} Rf8 {[%emt 0:01:53]} 36. b7 {[%emt 0:03:17]} Rd8 {[%emt 0:06:46]} 37. Qe3 {[%emt 0:03:14]} Kg5 {[%emt 0:11:53]} 38. Qg3+ {[%emt 0:01:40]} Rg4 {[%emt 0:01:42]} 39. Bxg4 {[%emt 0:00:32]} h4 {[%emt 0:00:38]} 40. Qe5+ {[%emt 0:02:29]} Kxg4 {[%emt 0:00:13]} 41. b8=Q {[%emt 0:30:37]} Rxb8 {[%emt 0:30:06]} 42. Qxb8 {[%emt 0:00:07]} Kh3 {[%emt 0:00:08]} 43. Qf4 {normal} 1-0

[Event "DVM U14w 2019"]
[Site "Neumuenster"]
[Date "2019.12.29"]
[Round "6"]
[White "Ramien, Hannah"]
[Black "Oswald, Hannah"]
[Result "0-1"]
[ECO "C55"]
[WhiteElo "1439"]
[BlackElo "1647"]
[Annotator "NA"]
[PlyCount "62"]
[EventDate "2019.12.27"]
[EventType "team-tourn"]
[EventRounds "7"]
[EventCountry "GER"]
[SourceTitle "playchess.com"]
[Source "ChessBase"]
[SourceQuality "1"]
[WhiteTeam "SG Porz"]
[BlackTeam "SG Leipzig"]
[WhiteTeamCountry "GER"]
[BlackTeamCountry "GER"]
[TimeControl "40/5400+30:1800+30"]

1. e4 {[%emt 0:00:00]} e5 {[%emt 0:00:00]} 2. Nf3 {[%emt 0:00:00]} Nc6 {[%emt 0:00:00]} 3. Bc4 {[%emt 0:00:00]} Nf6 {[%emt 0:00:00]} 4. d3 {[%emt 0:00:00]} Be7 {[%emt 0:00:18]} 5. c3 {[%emt 0:00:09]} O-O {[%emt 0:00:22]} 6. O-O {[%emt 0:00:06]} d6 {[%emt 0:00:20]} 7. Nbd2 {[%emt 0:00:59]} Na5 {[%emt 0:00:51]} 8. Bb5 {[%emt 0:00:11]} a6 {[%emt 0:00:06]} 9. Ba4 {[%emt 0:00:08]} b5 {[%emt 0:00:08]} 10. Bc2 {[%emt 0:00:07]} c5 {[%emt 0:00:25]} 11. Re1 {[%emt 0:00:18]} Nc6 {[%emt 0:01:24]} 12. Nf1 {[%emt 0:00:23]} Re8 {[%emt 0:01:05]} 13. Ng3 {[%emt 0:00:33]} Bf8 {[%emt 0:00:31]} 14. h3 {[%emt 0:00:56]} g6 {[%emt 0:01:46]} 15. Be3 {[%emt 0:00:55]} Bg7 {[%emt 0:01:42]} 16. Qd2 {[%emt 0:02:01]} Be6 {[%emt 0:13:13]} 17. Bh6 {[%emt 0:09:28]} Rb8 {[%emt 0:04:19]} 18. Bxg7 {[%emt 0:21:43]} Kxg7 {[%emt 0:02:38]} 19. Ng5 {[%emt 0:00:41]} Bc8 {[%emt 0:03:53]} 20. Bb3 {[%emt 0:05:56]} Re7 {[%emt 0:02:08]} 21. f4 {[%emt 0:10:55]} h6 {[%emt 0:06:48]} 22. Nf3 {[%emt 0:01:28]} Qb6 {[%emt 0:05:55]} 23. Qf2 {[%emt 0:03:19]} exf4 {[%emt 0:02:09]} 24. Ne2 {[%emt 0:06:46]} g5 {[%emt 0:05:03]} 25. Nd2 {[%emt 0:07:49]} Ne5 {[%emt 0:02:14]} 26. Bc2 {[%emt 0:07:29]} Bd7 {[%emt 0:08:01]} 27. h4 {[%emt 0:05:46]} Nfg4 {[%emt 0:00:52]} 28. Qf1 {[%emt 0:02:42]} Ne3 {[%emt 0:00:21]} 29. Qf2 {[%emt 0:00:13]} Nxc2 {[%emt 0:00:11]} 30. Rac1 {[%emt 0:00:32]} Nxe1 {[%emt 0:00:11]} 31. Qxe1 {[%emt 0:00:15]} Nxd3 {[%emt 0:00:11] normal} 0-1

[Event "DVM U14w 2019"]
[Site "Neumuenster"]
[Date "2019.12.29"]
[Round "6"]
[White "Berghold, Lotta"]
[Black "Yue, Qizhou"]
[Result "1/2-1/2"]
[ECO "D05"]
[WhiteElo "1398"]
[BlackElo "1784"]
[Annotator "NA"]
[PlyCount "58"]
[EventDate "2019.12.27"]
[EventType "team-tourn"]
[EventRounds "7"]
[EventCountry "GER"]
[SourceTitle "playchess.com"]
[Source "ChessBase"]
[SourceQuality "1"]
[WhiteTeam "SC Borussia Lichtenberg"]
[BlackTeam "SV Multatuli Ingelheim"]
[WhiteTeamCountry "GER"]
[BlackTeamCountry "GER"]
[TimeControl "40/5400+30:1800+30"]

1. d4 {[%emt 0:00:00]} Nf6 {[%emt 0:00:00]} 2. Nf3 {[%emt 0:00:00]} d5 {[%emt 0:00:00]} 3. e3 {[%emt 0:00:00]} c5 {[%emt 0:00:02]} 4. c3 {[%emt 0:00:00]} e6 {[%emt 0:00:09]} 5. Bd3 {[%emt 0:00:00]} Nc6 {[%emt 0:00:09]} 6. Nbd2 {[%emt 0:00:08]} Bd6 {[%emt 0:00:30]} 7. O-O {[%emt 0:00:06]} O-O {[%emt 0:00:32]} 8. dxc5 {[%emt 0:00:07]} Bxc5 {[%emt 0:00:08]} 9. e4 {[%emt 0:00:07]} Qc7 {[%emt 0:00:15]} 10. Qe2 {[%emt 0:03:13]} h6 {[%emt 0:00:18]} 11. h3 {[%emt 0:04:46]} Bb6 {[%emt 0:01:41]} 12. exd5 {[%emt 0:02:05]} exd5 {[%emt 0:02:40]} 13. Nb3 {[%emt 0:01:37]} Bd7 {[%emt 0:02:14]} 14. Be3 {[%emt 0:07:38]} Bxe3 {[%emt 0:06:03]} 15. Qxe3 {[%emt 0:00:23]} Rfe8 {[%emt 0:03:21]} 16. Qd2 {[%emt 0:00:42]} Rad8 {[%emt 0:08:47]} 17. Rfe1 {[%emt 0:03:11]} a5 {[%emt 0:35:01]} 18. Rxe8+ {[%emt 0:09:31]} Rxe8 {[%emt 0:00:25]} 19. a4 {[%emt 0:02:36]} Ne4 {[%emt 0:10:26]} 20. Qc2 {[%emt 0:01:55]} Qf4 {[%emt 0:01:10]} 21. Nbd4 {[%emt 0:14:06]} Nxd4 {[%emt 0:02:20]} 22. Nxd4 {[%emt 0:00:31]} Nd6 {[%emt 0:04:52]} 23. Qd1 {[%emt 0:21:31]} Qf6 {[%emt 0:03:34]} 24. Qf3 {[%emt 0:04:13]} Qg5 {[%emt 0:02:25]} 25. Bc2 {[%emt 0:04:29]} Be6 {[%emt 0:07:20]} 26. Re1 {[%emt 0:02:30]} Qd8 {[%emt 0:02:08]} 27. Qd1 {[%emt 0:09:57]} Qg5 {[%emt 0:01:05]} 28. Qf3 {[%emt 0:00:21]} Qd8 {[%emt 0:00:09]} 29. Qd1 {[%emt 0:00:07]} Qg5 {[%emt 0:00:07] normal} 1/2-1/2